bitfinex/quotes_SOLUSD_20250106
["timestamp","ask_amount","ask_price","bid_price","bid_amount"]
[1736129614754,43.776884,215.7,215.69,5.0]
[1736129614929,22.6504403,215.71,215.58,0.69551216]
[1736129614930,1.88820764,215.75,215.71,5.0]
[1736129615126,22.6504403,215.76,215.71,5.0]
[1736129615324,22.6504403,215.76,215.73,5.0]
[1736129615533,1.5365,215.79,215.77,5.0]
[1736129616027,22.6504403,215.78,215.77,5.0]
[1736129617648,22.6504403,215.78,215.75,5.0]
[1736129617827,22.6504403,215.78,215.77,5.0]
[1736129618718,46.4273243,215.78,215.77,5.0]
[1736129618924,23.776884,215.77,215.73,5.0]
[1736129619132,22.6504403,215.76,215.75,5.0]
[1736129619332,23.776884,215.75,215.71,5.0]
[1736129619630,22.6504403,215.72,215.69,5.0]
[1736129619834,22.6504403,215.7,215.69,5.0]
[1736129620840,20.0,215.7,215.69,5.0]
[1736129621174,22.6504403,215.72,215.69,5.0]
[1736129621337,22.6504403,215.71,215.69,5.0]
[1736129622572,22.6504403,215.72,215.71,5.0]
[1736129622762,20.0,215.72,215.71,5.0]
[1736129622963,2.52,215.74,215.73,5.0]
[1736129623180,22.6504403,215.77,215.75,5.0]
[1736129623475,22.6504403,215.78,215.75,5.0]
[1736129623966,25.1704403,215.79,215.75,5.0]
[1736129624140,22.6504403,215.81,215.79,5.0]
[1736129624965,22.6504403,215.82,215.81,5.0]
[1736129628469,22.6504403,215.87,215.83,5.0]
[1736129629344,22.6504403,215.86,215.83,5.0]
[1736129630636,22.6504403,215.85,215.83,5.0]
[1736129631049,22.6504403,215.84,215.83,5.0]
[1736129631647,22.6504403,215.9,215.88,5.0]
[1736129631851,22.6504403,215.89,215.88,5.0]
[1736129632052,22.6504403,215.9,215.88,5.0]
[1736129632364,22.6504403,215.91,215.88,5.0]
[1736129633361,20.0,215.92,215.9,5.0]
[1736129634146,42.6504403,215.92,215.9,5.0]
[1736129634478,20.0,215.92,215.9,5.0]
[1736129634872,22.6504403,215.91,215.9,5.0]
[1736129635393,42.6504403,215.92,215.9,5.0]
[1736129635585,20.0,215.92,215.9,5.0]
[1736129637703,22.6504403,215.93,215.9,5.0]
[1736129638886,22.6504403,215.93,215.92,5.0]
[1736129639589,22.6504403,215.94,215.92,5.0]
[1736129639774,1.89885963,215.95,215.94,5.0]
[1736129639971,22.6504403,215.96,215.94,5.0]
[1736129640192,24.50933427,215.96,215.94,5.0]
[1736129641087,16.02834342,215.96,215.94,5.0]
[1736129642084,14.16944945,215.97,215.94,5.0]
[1736129642596,20.0,215.97,215.96,5.0]
[1736129643785,34.16944945,215.97,215.96,5.0]
[1736129646185,14.16944945,215.98,215.96,5.0]
[1736129646384,14.16944945,215.99,215.98,5.0]
[1736129647294,16.01058225,216.0,215.98,5.0]
[1736129647493,34.16944945,216.01,215.98,5.0]
[1736129647719,23.776884,216.03,216.0,5.0]
[1736129647993,14.16944945,216.01,216.0,5.0]
[1736129648204,34.16944945,216.01,216.0,5.0]
[1736129649488,57.94633345,216.01,216.0,0.1918]
[1736129649690,37.94633345,216.01,216.0,0.0001]
[1736129650285,37.94633345,216.01,215.93,6.6228]
[1736129650492,14.16944945,215.96,215.93,6.6228]
[1736129650702,14.16944945,215.94,215.88,6.3658]
[1736129650996,14.16944945,215.92,215.88,6.3658]
[1736129651199,14.16944945,215.9,215.85,1.5581]
[1736129651505,14.16944945,215.9,215.84,14.16944945]
[1736129651685,1.5744,215.96,215.83,6.263]
[1736129651686,14.16944945,215.88,215.83,6.263]
[1736129652009,14.16944945,215.87,215.83,6.263]
[1736129652185,14.16944945,215.88,215.83,6.263]
[1736129652686,14.16944945,215.86,215.8,15.78624945]
[1736129652895,40.50706393,215.96,215.83,14.16944945]
[1736129652896,14.16944945,215.9,215.83,14.16944945]
[1736129653082,14.16944945,215.87,215.8,15.78624945]
[1736129653283,14.16944945,215.86,215.8,1.6168]
[1736129653481,14.16944945,215.86,215.79,14.16944945]
[1736129653683,14.16944945,215.88,215.81,14.16944945]
[1736129654404,14.16944945,215.87,215.8,14.16944945]
[1736129654608,14.16944945,215.88,215.81,14.16944945]
[1736129654794,14.16944945,215.88,215.82,14.16944945]
[1736129654995,22.68743936,215.88,215.82,22.68743936]
[1736129655188,2.46,215.89,215.83,22.68743936]
[1736129655405,2.46,215.89,215.84,22.68743936]
[1736129655993,2.46,215.89,215.85,22.68743936]
[1736129656182,2.46,215.89,215.87,22.68743936]
[1736129657101,2.46,215.89,215.86,22.68743936]
[1736129657613,2.46,215.89,215.85,22.68743936]
[1736129657987,2.46,215.89,215.84,22.68743936]
[1736129658190,25.14743936,215.89,215.82,22.68743936]
[1736129659005,2.46,215.89,215.83,22.68743936]
[1736129659189,25.14743936,215.89,215.82,22.68743936]
[1736129659899,23.776884,215.88,215.73,10.0]
[1736129660102,22.68743936,215.85,215.78,28.94793936]
[1736129660413,22.68743936,215.84,215.78,6.2605]
[1736129660591,42.68743936,215.85,215.78,28.94793936]
[1736129660790,42.68743936,215.85,215.79,22.68743936]
[1736129661314,20.0,215.85,215.8,22.68743936]
[1736129661697,14.0401,215.89,215.83,22.68743936]
[1736129662131,14.0401,215.89,215.84,22.68743936]
[1736129662614,14.0401,215.89,215.83,22.68743936]
[1736129663132,36.72753936,215.89,215.82,22.68743936]
[1736129663289,22.68743936,215.88,215.81,22.68743936]
[1736129663622,22.68743936,215.85,215.79,22.68743936]
[1736129663800,42.68743936,215.85,215.79,22.68743936]
[1736129663987,22.68743936,215.83,215.77,22.68743936]
[1736129664188,22.68743936,215.82,215.75,22.68743936]
[1736129664407,22.68743936,215.81,215.75,22.68743936]
[1736129665298,22.68743936,215.83,215.77,22.68743936]
[1736129665516,24.32263936,215.87,215.81,22.68743936]
[1736129666316,22.68743936,215.86,215.79,22.68743936]
[1736129666511,42.68743936,215.86,215.79,22.68743936]
[1736129666817,20.0,215.86,215.8,22.68743936]
[1736129667396,20.0,215.86,215.81,22.68743936]
[1736129667801,20.0,215.86,215.8,22.68743936]
[1736129668922,24.32263936,215.87,215.81,22.68743936]
[1736129669098,24.32263936,215.87,215.8,22.68743936]
[1736129670704,24.32263936,215.87,215.81,22.68743936]
[1736129671321,1.6352,215.87,215.81,22.68743936]
[1736129671508,1.6352,215.87,215.82,22.68743936]
[1736129671706,1.6352,215.87,215.81,22.68743936]
[1736129671917,1.6352,215.87,215.76,0.69493951]
[1736129671918,28.49745239,215.92,215.85,22.68743936]
[1736129672117,3.9463,215.92,215.87,22.68743936]
[1736129672422,1.5463,215.92,215.87,22.68743936]
[1736129673020,1.5463,215.92,215.86,22.68743936]
[1736129673329,26.99206415,215.95,215.88,22.68743936]
[1736129673520,36.66323936,215.97,215.9,22.68743936]
[1736129673819,20.0,215.94,215.89,22.68743936]
[1736129674122,22.68743936,215.96,215.89,22.68743936]
[1736129675119,11.5758,215.97,215.91,22.68743936]
[1736129675431,22.68743936,216.01,215.94,22.68743936]
[1736129675594,22.68743936,216.01,215.93,22.68743936]
[1736129676418,22.68743936,216.01,215.94,22.68743936]
[1736129677009,14.16325673,216.01,215.94,14.16325673]
[1736129679027,14.16325673,216.01,215.95,14.16325673]
[1736129679214,34.16325673,216.02,215.95,14.16325673]
[1736129679614,14.16325673,216.01,215.95,14.16325673]
[1736129680426,34.16325673,216.02,215.95,14.16325673]
[1736129681837,14.16325673,216.01,215.95,14.16325673]
[1736129682130,14.16325673,216.0,215.94,14.16325673]
[1736129683535,14.16325673,216.01,215.95,14.16325673]
[1736129684525,14.16325673,216.0,215.94,14.16325673]
[1736129684714,14.16325673,216.0,215.93,14.16325673]
[1736129685429,14.16325673,216.0,215.94,14.16325673]
[1736129685929,14.16325673,215.97,215.9,0.69447351]
[1736129686107,14.16325673,215.97,215.91,14.16325673]
[1736129686307,14.16325673,215.98,215.92,14.16325673]
[1736129687634,14.16325673,215.96,215.9,0.69447351]
[1736129687820,14.16325673,215.94,215.88,14.16325673]
[1736129688021,25.73945673,215.96,215.9,14.16325673]
[1736129689030,1.6274,215.97,215.91,14.16325673]
[1736129689937,1.6274,215.97,215.92,14.16325673]
[1736129690336,15.79065673,215.97,215.91,14.16325673]
[1736129690716,14.16325673,215.96,215.9,14.16325673]
[1736129692009,14.16325673,215.96,215.89,14.16325673]
[1736129692215,14.16325673,215.94,215.87,14.85781583]
[1736129693439,14.16325673,215.93,215.87,14.16325673]
[1736129693647,14.16325673,215.92,215.86,14.16325673]
[1736129693942,14.16325673,215.91,215.85,14.16325673]
[1736129695838,14.16325673,215.96,215.89,14.16325673]
[1736129696011,14.16325673,215.96,215.9,14.16325673]
[1736129696216,14.16325673,215.96,215.89,14.16325673]
[1736129696528,34.16325673,215.95,215.88,14.16325673]
[1736129697034,20.0,215.95,215.89,14.16325673]
[1736129697229,14.16325673,215.96,215.89,14.16325673]
[1736129697736,14.16325673,215.96,215.9,14.16325673]
[1736129697927,14.16325673,215.96,215.89,14.16325673]
[1736129699332,14.16325673,215.96,215.9,14.16325673]
[1736129700241,14.16325673,215.95,215.88,14.16325673]
[1736129700545,14.16325673,215.92,215.85,14.85800013]
[1736129700941,14.16325673,215.92,215.86,14.16325673]
[1736129701146,14.16325673,215.93,215.87,14.16325673]
[1736129701352,14.16325673,215.91,215.85,14.16325673]
[1736129701644,14.16325673,215.87,215.81,14.16325673]
[1736129701816,14.16325673,215.85,215.79,14.16325673]
[1736129702216,14.16325673,215.86,215.79,14.16325673]
[1736129702417,14.16325673,215.84,215.77,14.16325673]
[1736129702623,14.16325673,215.83,215.77,14.16325673]
[1736129703165,14.16325673,215.82,215.76,14.16325673]
[1736129703456,14.16325673,215.82,215.75,14.16325673]
[1736129704172,14.16325673,215.84,215.77,14.16325673]
[1736129704323,14.16325673,215.83,215.77,14.16325673]
[1736129704523,14.16325673,215.83,215.76,14.16325673]
[1736129704825,14.16325673,215.82,215.75,14.16325673]
[1736129705126,14.16325673,215.8,215.74,14.16325673]
[1736129705339,14.16325673,215.79,215.73,14.16325673]
[1736129705820,11.5831,215.83,215.7,136.2]
[1736129705821,14.16325673,215.77,215.7,14.16325673]
[1736129706017,14.16325673,215.75,215.68,14.85845425]
[1736129706220,14.16325673,215.75,215.68,14.16325673]
[1736129706648,14.16325673,215.75,215.69,14.16325673]
[1736129706852,6.5382,215.81,215.73,14.16325673]
[1736129707174,6.5382,215.81,215.75,14.16325673]
[1736129707175,14.16325673,215.81,215.75,14.16325673]
[1736129707619,14.16325673,215.81,215.74,14.16325673]
[1736129707817,14.16325673,215.81,215.75,14.16325673]
[1736129708043,14.16325673,215.81,215.74,14.16325673]
[1736129708550,1.5242,215.82,215.77,14.16325673]
[1736129708746,1.5242,215.82,215.78,14.16325673]
[1736129708966,16.50325673,215.85,215.81,14.16325673]
[1736129708967,2.34,215.85,215.81,14.16325673]
[1736129709133,2.34,215.85,215.83,14.16325673]
[1736129709327,2.34,215.85,215.81,14.16325673]
[1736129709546,16.50325673,215.85,215.75,0.69493579]
[1736129709749,2.34,215.85,215.79,14.16325673]
[1736129710087,16.50325673,215.85,215.79,14.16325673]
[1736129710765,2.34,215.85,215.8,14.16325673]
[1736129711984,2.34,215.85,215.78,14.16325673]
[1736129711985,16.50325673,215.85,215.78,14.16325673]
[1736129712291,14.16325673,215.84,215.76,14.16325673]
[1736129712444,14.16325673,215.83,215.76,14.16325673]
[1736129712645,2.34,215.85,215.74,14.16325673]
[1736129712646,14.16325673,215.81,215.74,14.16325673]
[1736129712846,14.16325673,215.8,215.73,14.16325673]
[1736129713159,14.16325673,215.81,215.74,14.16325673]
[1736129713335,14.16325673,215.83,215.76,14.16325673]
[1736129713735,14.16325673,215.82,215.75,14.16325673]
[1736129714251,14.16325673,215.81,215.74,14.16325673]
[1736129715072,14.16325673,215.8,215.73,14.16325673]
[1736129716166,14.16325673,215.79,215.72,14.16325673]
[1736129716468,14.16325673,215.78,215.71,14.16325673]
[1736129716960,14.16325673,215.77,215.7,14.16325673]
[1736129717167,1.6244,215.79,215.68,0.69521545]
[1736129717168,14.16325673,215.76,215.69,14.16325673]
[1736129717367,14.16325673,215.74,215.68,14.16325673]
[1736129717666,14.16325673,215.74,215.67,14.16325673]
[1736129718057,14.16325673,215.72,215.65,14.16325673]
[1736129718242,14.16325673,215.69,215.63,14.16325673]
[1736129718445,14.16325673,215.68,215.61,14.16325673]
[1736129718960,14.16325673,215.67,215.6,14.16325673]
[1736129719154,14.16325673,215.67,215.59,0.69550616]
[1736129719155,14.16325673,215.67,215.61,14.16325673]
[1736129719775,14.16325673,215.67,215.57,0.69555679]
[1736129719776,14.16325673,215.66,215.59,14.16325673]
[1736129719946,14.16325673,215.64,215.58,14.16325673]
[1736129720787,14.16325673,215.66,215.59,14.16325673]
[1736129721387,14.16325673,215.65,215.59,14.16325673]
[1736129721588,14.16325673,215.65,215.58,14.16325673]
[1736129721786,14.16325673,215.64,215.57,14.16325673]
[1736129722075,14.16325673,215.62,215.55,14.16325673]
[1736129722446,14.16325673,215.59,215.53,14.16325673]
[1736129722858,1.5818,215.61,215.55,14.16325673]
[1736129723061,1.5818,215.61,215.5,0.69575842]
[1736129723062,1.5818,215.61,215.58,14.16325673]
[1736129723274,1.5818,215.61,215.59,14.16325673]
[1736129724066,1.5818,215.61,215.57,14.16325673]
[1736129724243,15.74505673,215.61,215.55,14.16325673]
[1736129724442,14.16325673,215.58,215.52,150.36325673]
[1736129724896,14.16325673,215.56,215.5,14.16325673]
[1736129725193,14.16325673,215.57,215.5,14.16325673]
[1736129725349,14.16325673,215.57,215.47,0.69591985]
[1736129725350,14.16325673,215.56,215.49,14.16325673]
[1736129725672,14.16325673,215.55,215.48,14.16325673]
[1736129726172,14.16325673,215.55,215.49,14.16325673]
[1736129726365,14.16325673,215.55,215.48,14.16325673]
[1736129726854,14.16325673,215.55,215.49,14.16325673]
[1736129727173,14.16325673,215.55,215.48,14.16325673]
[1736129727374,49.53564073,215.6,215.46,14.16325673]
[1736129727375,14.16325673,215.53,215.46,14.16325673]
[1736129727578,14.16325673,215.53,215.47,14.16325673]
[1736129727773,14.16325673,215.54,215.48,14.16325673]
[1736129727968,14.16325673,215.56,215.49,14.16325673]
[1736129728312,18.10505673,215.61,215.55,14.16325673]
[1736129728469,3.9418,215.61,215.56,14.16325673]
[1736129728872,3.9418,215.61,215.55,14.16325673]
[1736129729172,3.9418,215.61,215.56,14.16325673]
[1736129729479,3.9418,215.61,215.55,14.16325673]
[1736129729779,18.10505673,215.61,215.54,14.16325673]
[1736129729972,14.16325673,215.59,215.45,141.2]
[1736129730174,14.16325673,215.58,215.51,14.16325673]
[1736129730363,14.16325673,215.55,215.46,0.69590894]
[1736129730563,1.605,215.51,215.39,136.2]
[1736129730750,1.605,215.51,215.37,11.2236]
[1736129730751,15.76825673,215.51,215.4,0.69610651]
[1736129731089,14.16325673,215.45,215.38,0.69614623]
[1736129731252,14.16325673,215.44,215.38,14.16325673]
[1736129731453,14.16325673,215.43,215.37,14.16325673]
[1736129731653,14.16325673,215.44,215.38,14.16325673]
[1736129731868,14.16325673,215.44,215.37,14.16325673]
[1736129732064,14.16325673,215.43,215.36,14.16325673]
[1736129732487,23.776884,215.48,215.36,14.16325673]
[1736129732488,14.16325673,215.42,215.36,14.16325673]
[1736129732793,14.16325673,215.37,215.3,14.16325673]
[1736129732974,14.16325673,215.37,215.3,22.79524208]
[1736129732975,22.79524208,215.37,215.3,22.79524208]
[1736129733164,22.79524208,215.35,215.28,22.79524208]
[1736129733488,22.79524208,215.33,215.24,0.69651437]
[1736129733683,22.79524208,215.34,215.27,22.79524208]
[1736129734002,2.36,215.35,215.29,22.79524208]
[1736129734353,35.383284,215.4,215.3,22.79524208]
[1736129734354,22.79524208,215.37,215.3,22.79524208]
[1736129734560,22.79524208,215.34,215.28,22.79524208]
[1736129734787,22.79524208,215.34,215.27,22.79524208]
[1736129734989,22.79524208,215.32,215.25,22.79524208]
[1736129735159,22.79524208,215.31,215.24,22.79524208]
[1736129735360,22.79524208,215.3,215.23,22.79524208]
[1736129735593,24.46094208,215.29,215.22,22.79524208]
[1736129736383,22.79524208,215.23,215.16,22.79524208]
[1736129736556,21.6657,215.29,215.15,0.69699976]
[1736129736760,2.36,215.28,215.15,20.69699976]
[1736129736961,22.79524208,215.26,215.19,22.79524208]
[1736129737263,22.79524208,215.22,215.15,22.79524208]
[1736129737465,22.79524208,215.21,215.14,22.79524208]
[1736129737658,22.79524208,215.18,215.12,22.79524208]
[1736129737972,22.79524208,215.17,215.1,22.79524208]
[1736129738168,2.36,215.18,215.07,0.69709768]
[1736129738367,22.79524208,215.14,215.08,22.79524208]
[1736129738693,22.79524208,215.15,215.08,22.79524208]
[1736129738997,2.36,215.16,215.07,22.79524208]
[1736129738998,22.79524208,215.14,215.07,22.79524208]
[1736129739183,46.57212608,215.13,215.06,22.79524208]
[1736129739367,22.79524208,215.11,215.04,22.79524208]
[1736129739691,22.79524208,215.1,215.03,22.79524208]
[1736129739865,22.79524208,215.07,215.0,22.79524208]
[1736129740066,22.79524208,215.06,214.96,0.69746909]
[1736129740278,22.79524208,215.05,214.98,22.79524208]
[1736129740486,22.79524208,215.06,214.99,22.79524208]
[1736129740761,2.36,215.07,215.03,22.79524208]
[1736129740961,2.36,215.13,215.06,22.79524208]
[1736129741192,2.36,215.18,215.07,0.69727915]
[1736129741400,22.79524208,215.13,215.03,0.69718919]
[1736129741595,2.36,215.18,215.03,0.69718919]
[1736129741778,21.6188,215.17,215.03,20.69718919]
[1736129741974,2.36,215.16,215.04,20.0]
[1736129742478,22.79524208,215.08,215.01,22.79524208]
[1736129742684,22.79524208,215.06,214.99,22.79524208]
[1736129742996,22.79524208,215.11,215.0,20.6975224]
[1736129743169,22.79524208,215.11,215.04,22.79524208]
[1736129744365,22.36,215.13,215.06,22.79524208]
[1736129744366,45.15524208,215.13,215.06,22.79524208]
[1736129744566,22.79524208,215.11,215.04,22.79524208]
[1736129744767,22.79524208,215.12,215.05,22.79524208]
[1736129744962,2.36,215.13,215.07,22.79524208]
[1736129745171,1.6188,215.17,215.07,0.69728723]
[1736129745379,3.9788,215.17,215.11,22.79524208]
[1736129745580,22.79524208,215.13,215.07,20.0]
[1736129745828,22.79524208,215.15,215.08,22.79524208]
[1736129746113,22.79524208,215.15,215.07,20.0]
[1736129746114,22.79524208,215.15,215.07,42.79524208]
[1736129746273,22.79524208,215.15,215.08,22.79524208]
[1736129746475,22.79524208,215.16,215.09,22.79524208]
[1736129746694,3.9788,215.17,215.11,22.79524208]
[1736129746875,26.77404208,215.17,215.1,22.79524208]
[1736129747433,24.41404208,215.17,215.1,22.79524208]
[1736129747735,1.6188,215.17,215.12,22.79524208]
[1736129747951,1.6188,215.17,215.13,22.79524208]
[1736129748104,24.39174208,215.23,215.16,22.79524208]
[1736129748310,24.39174208,215.23,215.15,22.79524208]
[1736129748934,22.79524208,215.21,215.09,0.69701685]
[1736129749109,24.39174208,215.23,215.15,22.79524208]
[1736129749321,22.79524208,215.27,215.2,22.79524208]
[1736129749715,22.79524208,215.26,215.19,22.79524208]
[1736129750216,22.79524208,215.27,215.2,22.79524208]
[1736129750598,22.79524208,215.27,215.16,0.69702232]
[1736129750599,22.79524208,215.24,215.17,22.79524208]
[1736129750835,22.79524208,215.21,215.14,22.79524208]
[1736129751197,22.79524208,215.19,215.12,22.79524208]
[1736129751403,22.79524208,215.16,215.09,22.79524208]
[1736129751635,22.79524208,215.17,215.1,22.79524208]
[1736129751826,22.79524208,215.15,215.08,22.79524208]
[1736129752028,22.79524208,215.16,215.09,22.79524208]
[1736129752339,23.776884,215.19,215.12,22.79524208]
[1736129752340,22.79524208,215.19,215.12,22.79524208]
[1736129752512,22.79524208,215.2,215.13,22.79524208]
[1736129752718,25.35524208,215.22,215.15,22.79524208]
[1736129753331,25.35524208,215.22,215.08,0.697079]
[1736129753529,29.4713,215.31,215.19,22.79524208]
[1736129753530,22.79524208,215.26,215.19,22.79524208]
[1736129753709,20.0,215.09,214.92,6.555]
[1736129753909,22.79524208,215.09,215.01,22.79524208]
[1736129754234,2.56,215.12,214.97,5.0]
[1736129754443,2.56,215.12,215.0,20.0]
[1736129754655,2.56,215.12,215.01,0.69732432]
[1736129754951,20.0,215.16,215.02,23.776884]
[1736129755149,10.4441,215.19,215.04,30.238584]
[1736129755312,10.4441,215.19,215.12,22.79524208]
[1736129755731,33.23934208,215.19,215.11,22.79524208]
[1736129755941,22.79524208,215.18,215.11,22.79524208]
[1736129756103,33.23934208,215.19,215.11,22.79524208]
[1736129756306,4.2228,215.19,215.13,22.79524208]
[1736129756634,1.6628,215.19,215.13,22.79524208]
[1736129757335,1.6628,215.19,215.14,22.79524208]
[1736129758238,13.91,215.23,215.17,22.79524208]
[1736129758561,22.79524208,215.22,215.15,22.79524208]
[1736129758754,22.79524208,215.22,215.11,3.25707263]
[1736129758917,22.79524208,215.21,215.14,22.79524208]
[1736129759554,22.79524208,215.2,215.13,22.79524208]
[1736129759713,13.91,215.23,215.05,170.61994208]
[1736129759714,22.79524208,215.17,215.09,22.79524208]
[1736129759923,22.79524208,215.19,215.12,22.79524208]
[1736129760755,22.79524208,215.22,215.15,22.79524208]
[1736129761049,36.70524208,215.23,215.16,22.79524208]
[1736129761215,22.79524208,215.22,215.15,22.79524208]
[1736129761554,22.79524208,215.22,215.14,22.79524208]
[1736129761851,22.79524208,215.21,215.14,22.79524208]
[1736129762233,22.79524208,215.19,215.11,22.79524208]
[1736129762740,22.79524208,215.2,215.13,22.79524208]
[1736129762953,13.91,215.23,215.18,22.79524208]
[1736129763336,13.91,215.23,215.17,22.79524208]
[1736129763518,22.79524208,215.21,215.14,22.79524208]
[1736129763936,22.79524208,215.22,215.15,22.79524208]
[1736129764420,13.91,215.23,215.21,22.79524208]
[1736129764916,13.91,215.23,215.22,22.79524208]
[1736129765118,13.91,215.23,215.2,22.79524208]
[1736129765352,13.91,215.23,215.19,22.79524208]
[1736129765550,36.70524208,215.23,215.16,22.79524208]
[1736129765752,36.70524208,215.23,215.09,6.6133]
[1736129765753,13.91,215.23,215.09,6.6133]
[1736129765955,13.91,215.23,215.12,22.79524208]
[1736129766116,22.79524208,215.2,215.13,22.79524208]
[1736129766431,36.70524208,215.23,215.15,22.79524208]
[1736129767257,22.79524208,215.19,215.12,22.79524208]
[1736129767727,22.79524208,215.18,215.11,22.79524208]
[1736129768052,22.79524208,215.2,215.12,22.79524208]
[1736129768217,22.79524208,215.19,215.12,22.79524208]
[1736129768415,22.79524208,215.17,215.09,22.79524208]
[1736129768664,22.79524208,215.13,215.06,22.79524208]
[1736129768820,22.79524208,215.13,214.99,13.1517]
[1736129768821,22.79524208,215.11,215.04,22.79524208]
[1736129769023,22.79524208,215.1,215.02,22.79524208]
[1736129769959,22.79524208,215.1,215.03,22.79524208]
[1736129770167,22.79524208,215.1,214.94,40.94924208]
[1736129770168,24.40474208,215.09,215.02,22.79524208]
[1736129770464,22.79524208,215.13,215.06,22.79524208]
[1736129770973,1.6095,215.14,215.09,22.79524208]
[1736129771274,1.6095,215.14,215.11,22.79524208]
[1736129771435,1.6095,215.14,215.1,22.79524208]
[1736129771635,1.6095,215.14,215.11,22.79524208]
[1736129771831,1.6095,215.14,215.06,0.69720422]
[1736129771832,1.6095,215.19,215.12,22.79524208]
[1736129772026,1.6095,215.19,215.06,0.69720422]
[1736129772027,1.6095,215.19,215.15,22.79524208]
[1736129772229,20.2558,215.23,215.06,0.69720422]
[1736129772230,20.2558,215.23,215.18,22.79524208]
[1736129772474,13.91,215.23,215.18,22.79524208]
[1736129772771,13.91,215.23,215.22,22.79524208]
[1736129772946,13.91,215.23,215.22,66.57212608]
[1736129773146,24.30254208,215.36,215.22,23.49181243]
[1736129773468,24.30254208,215.36,215.29,22.79524208]
[1736129774128,22.79524208,215.34,215.27,22.79524208]
[1736129774331,22.79524208,215.35,215.27,22.79524208]
[1736129775340,1.5073,215.36,215.29,22.79524208]
[1736129775341,24.30254208,215.36,215.29,22.79524208]
[1736129775765,1.5073,215.36,215.3,22.79524208]
[1736129775963,1.5073,215.36,215.31,22.79524208]
[1736129776163,1.5073,215.36,215.34,22.79524208]
[1736129776736,1.5073,215.36,215.3,22.79524208]
[1736129776959,1.5073,215.36,215.34,22.79524208]
[1736129777235,1.6428,215.42,215.35,23.49168713]
[1736129777463,1.6428,215.42,215.27,22.79524208]
[1736129777464,44.43804208,215.42,215.32,2.58]
[1736129777636,23.776884,215.41,215.3,20.0]
[1736129777834,21.6428,215.42,215.25,11.6138]
[1736129777835,23.776884,215.37,215.26,0.69649061]
[1736129778149,21.6428,215.42,215.26,0.69649061]
[1736129778350,23.776884,215.4,215.26,0.69649061]
[1736129778775,22.79524208,215.39,215.32,22.79524208]
[1736129778940,22.79524208,215.4,215.32,22.79524208]
[1736129779137,1.6428,215.42,215.37,22.79524208]
[1736129779343,1.6428,215.42,215.38,22.79524208]
[1736129779541,1.6428,215.42,215.37,22.79524208]
[1736129779542,21.6428,215.42,215.37,22.79524208]
[1736129779744,21.6428,215.42,215.36,22.79524208]
[1736129780383,1.6428,215.42,215.38,22.79524208]
[1736129780668,22.79524208,215.39,215.29,22.79524208]
[1736129780879,22.79524208,215.36,215.28,22.79524208]
[1736129781059,22.79524208,215.38,215.3,22.79524208]
[1736129781240,22.79524208,215.37,215.27,2.58]
[1736129781434,23.776884,215.41,215.28,22.79524208]
[1736129781435,22.79524208,215.35,215.28,22.79524208]
[1736129781677,22.79524208,215.31,215.24,22.79524208]
[1736129781837,1.5182,215.3,215.23,22.79524208]
[1736129782039,1.5182,215.3,215.27,22.79524208]
[1736129782236,1.5182,215.3,215.26,22.79524208]
[1736129782639,1.5182,215.3,215.27,22.79524208]
[1736129782947,11.6057,215.41,215.22,0.69671837]
[1736129782948,1.6342,215.35,215.29,22.79524208]
[1736129783163,1.6342,215.35,215.32,22.79524208]
[1736129783340,1.5154,215.4,215.34,22.79524208]
[1736129783679,1.5154,215.4,215.36,22.79524208]
[1736129783840,22.79524208,215.39,215.32,22.79524208]
[1736129784976,20.0,215.39,215.27,22.79524208]
[1736129785183,22.79524208,215.33,215.26,22.79524208]
[1736129785777,22.79524208,215.33,215.22,3.27669773]
[1736129785980,22.79524208,215.33,215.26,22.79524208]
[1736129786149,22.79524208,215.33,215.25,22.79524208]
[1736129786350,22.79524208,215.3,215.23,22.79524208]
[1736129786545,1.5486,215.29,215.22,22.79524208]
[1736129786756,22.79524208,215.28,215.2,22.79524208]
[1736129786962,22.79524208,215.27,215.19,22.79524208]
[1736129787171,22.79524208,215.26,215.19,22.79524208]
[1736129787688,22.79524208,215.21,215.14,22.79524208]
[1736129788587,22.79524208,215.19,215.12,22.79524208]
[1736129788789,24.35654208,215.18,215.11,22.79524208]
[1736129789166,1.5613,215.18,215.08,20.0]
[1736129789359,1.6364,215.23,215.17,22.79524208]
[1736129789559,1.6364,215.23,215.18,22.79524208]
[1736129789961,1.6364,215.23,215.21,22.79524208]
[1736129790157,24.32014208,215.29,215.22,22.79524208]
[1736129790383,1.5249,215.29,215.23,22.79524208]
[1736129790688,1.5249,215.29,215.22,22.79524208]